"Anno";"Comp./Res.";"Tipo";"Data Mov.";"Progr.";"Causale";"Capitolo";"Articolo";"DebitoreFornitore";"Importo";"Iva sp";"Inps";"Irpef";"Netto";"Modalita Pagamento";"ValidoAnnullato";"Note";"Anno imp. /acc.";"Imp. /Acc."
"2023";"COMPETENZA";"Mandato";"28/03/2023";"155";"Pagamento fattura n.4/59 del 22/03/2023  - Rif. Reversale n. 266";"39 - Spese varie e emissione MAV";"0 - Spese varie e emissione MAV";"COOPERATIVA E.D.P. LA TRACCIA  ";"1.844,64";"332,64";"-";"0,00";"1.512,00";"BONIFICO BANCARIO";"Valido";"-";"2023";"141"
"2023";"COMPETENZA";"Mandato";"28/03/2023";"154";"Pagamento fattura n.141 del 24/03/2023  - Rif. Reversale n. 265";"32 - Spese legali, consulenza del lavoro, R.S.P.P.";"0 - Spese legali, consulenza del lavoro, R.S.P.P.";"NORMA SRL  ";"610,00";"110,00";"-";"0,00";"500,00";"BONIFICO BANCARIO";"Valido";"-";"2023";"140"
"2023";"COMPETENZA";"Mandato";"22/03/2023";"153";"IRAP STIPENDI MARZO";"13 - Contributi previdenziali e assistenziali";"0 - Contributi previdenziali e assistenziali";"AGENZIA DELLE ENTRATE  ";"586,08";"-";"0,00";"0,00";"586,08";"MODELLO F 24";"Valido";"-";"2023";"139"
"2023";"COMPETENZA";"Mandato";"22/03/2023";"152";"INPDAP STIPENDI MARZO";"13 - Contributi previdenziali e assistenziali";"0 - Contributi previdenziali e assistenziali";"AGENZIA DELLE ENTRATE  ";"6,90";"-";"0,00";"0,00";"6,90";"MODELLO F 24";"Valido";"-";"2023";"138"
"2023";"COMPETENZA";"Mandato";"22/03/2023";"151";"INPS ENTE MARZO";"13 - Contributi previdenziali e assistenziali";"0 - Contributi previdenziali e assistenziali";"AGENZIA DELLE ENTRATE  ";"1.641,70";"-";"0,00";"0,00";"1.641,70";"MODELLO F 24";"Valido";"-";"2023";"137"
"2023";"COMPETENZA";"Mandato";"22/03/2023";"150";"INPS STIPENDI MARZO - VINCOLATO A REVERSALI 239-241";"51 - Ritenute previdenziali e assistenziali lavoro dipendente";"0 - Ritenute previdenziali e assistenziali lavoro dipendente";"AGENZIA DELLE ENTRATE  ";"1.774,28";"-";"0,00";"0,00";"1.774,28";"MODELLO F 24";"Valido";"-";"2023";"136"
"2023";"COMPETENZA";"Mandato";"22/03/2023";"149";"IRPEF STIPENDI MARZO - VINCOLATO A REVERSALI 238-240";"47 - Ritenute erariali per lavoro dipendente";"0 - Ritenute erariali per lavoro dipendente";"AGENZIA DELLE ENTRATE  ";"587,08";"-";"0,00";"0,00";"587,08";"MODELLO F 24";"Valido";"-";"2023";"135"
"2023";"COMPETENZA";"Mandato";"21/03/2023";"148";"MARZO";"10 - Indennit� mensa";"0 - Indennit� mensa";"SANTIN COSTANZA";"37,03";"-";"0,00";"0,00";"37,03";"BONIFICO BANCARIO";"Valido";"VALUTA FISSA AL 27/03/2023 - SENZA SPESE A CARICO DEL BENEFICIARIO";"2023";"134"
"2023";"COMPETENZA";"Mandato";"21/03/2023";"147";"MARZO";"10 - Indennit� mensa";"0 - Indennit� mensa";"OZBOLT STEFANO";"26,45";"-";"0,00";"0,00";"26,45";"BONIFICO BANCARIO";"Valido";"VALUTA FISSA AL 27/03/2023 - SENZA SPESE A CARICO DEL BENEFICIARIO";"2023";"133"
"2023";"COMPETENZA";"Mandato";"21/03/2023";"146";"INDENNITA' E STRAORDINARI MARZO";"9 - Indennit�, trattamento accessorio e lavoro straordinario";"0 - Indennit�, trattamento accessorio e lavoro straordinario";"OZBOLT STEFANO";"294,48";"-";"0,00";"0,00";"294,48";"BONIFICO BANCARIO";"Valido";"VALUTA FISSA AL 27/03/2023 - SENZA SPESE A CARICO DEL BENEFICIARIO";"2023";"132"
"2023";"COMPETENZA";"Mandato";"21/03/2023";"145";"STIPENDIO MARZO";"6 - Trattamento economico fondamentale";"0 - Trattamento economico fondamentale";"SANTIN COSTANZA";"4.448,17";"-";"410,65";"1.285,55";"2.751,97";"BONIFICO BANCARIO";"Valido";"VALUTA FISSA AL 27/03/2023 - SENZA SPESE A CARICO DEL BENEFICIARIO";"2023";"131"
"2023";"COMPETENZA";"Mandato";"21/03/2023";"144";"STIPENDIO MARZO";"6 - Trattamento economico fondamentale";"0 - Trattamento economico fondamentale";"OZBOLT STEFANO";"2.153,23";"-";"176,43";"488,73";"1.488,07";"BONIFICO BANCARIO";"Valido";"VALUTA FISSA AL 27/03/2023 - SENZA SPESE A CARICO DEL BENEFICIARIO";"2023";"130"
"2023";"COMPETENZA";"Mandato";"20/03/2023";"143";"IVA SPLIT PAYMENT SU FATT. 8/PA - GI.DI.No. - VINCOLATO A REVERSALE 237";"53 - Ritenute per conto terzi";"0 - Ritenute per conto terzi";"AGENZIA DELLE ENTRATE  ";"80,30";"-";"0,00";"0,00";"80,30";"MODELLO F 24";"Valido";"-";"2023";"129"
"2023";"COMPETENZA";"Mandato";"20/03/2023";"142";"IVA SPLIT PAYMENT SU FATT. 4/8 - SAPIENZA E PONTE - VINCOLATO A REVERSALE 236";"53 - Ritenute per conto terzi";"0 - Ritenute per conto terzi";"AGENZIA DELLE ENTRATE  ";"99,00";"-";"0,00";"0,00";"99,00";"MODELLO F 24";"Valido";"-";"2023";"128"
"2023";"COMPETENZA";"Mandato";"20/03/2023";"141";"IVA SPLIT PAYMENT SU FATT. 412303467788 - HERA COMM. SRL - VINCOLATO A REVERSALE 235";"53 - Ritenute per conto terzi";"0 - Ritenute per conto terzi";"AGENZIA DELLE ENTRATE  ";"15,43";"-";"0,00";"0,00";"15,43";"MODELLO F 24";"Valido";"-";"2023";"127"
"2023";"COMPETENZA";"Mandato";"20/03/2023";"140";"IVA SPLIT PAYMENT SU FATT. 000006PA - GRAMAGLIA & C. SRL - VINCOLATO A REVERSALE 225";"53 - Ritenute per conto terzi";"0 - Ritenute per conto terzi";"AGENZIA DELLE ENTRATE  ";"91,98";"-";"0,00";"0,00";"91,98";"MODELLO F 24";"Valido";"-";"2023";"126"
"2023";"COMPETENZA";"Mandato";"20/03/2023";"139";"Pagamento fattura n.8/PA del 17/03/2023  - Rif. Reversale n. 237";"25 - Spese manutenzione sede";"0 - Spese manutenzione sede";"Gi.Di.No. ";"445,30";"80,30";"-";"0,00";"365,00";"BONIFICO BANCARIO";"Valido";"-";"2023";"125"
"2023";"COMPETENZA";"Mandato";"20/03/2023";"138";"Pagamento fattura n.4/8 del 17/03/2023  - Rif. Reversale n. 236";"25 - Spese manutenzione sede";"0 - Spese manutenzione sede";"SAPIENZA E PONTE  ";"549,00";"99,00";"-";"0,00";"450,00";"BONIFICO BANCARIO";"Valido";"-";"2023";"124"
"2023";"COMPETENZA";"Mandato";"17/03/2023";"137";"Pagamento fattura n.412303467788 del 15/03/2023  - Rif. Reversale n. 235";"31 - Energia elettrica, acqua e gas";"0 - Energia elettrica, acqua e gas";"HERA COMM. SRL  ";"323,99";"15,43";"-";"0,00";"308,56";"BONIFICO BANCARIO";"Valido";"-";"2023";"123"
"2023";"COMPETENZA";"Mandato";"14/03/2023";"136";"Pagamento fattura n.000006PA del 09/03/2023  - Rif. Reversale n. 225";"18 - Spese gestione fotocopiatrice, fax e sistema informatico";"0 - Spese gestione fotocopiatrice, fax e sistema informatico";"GRAMAGLIA & C. SRL  ";"510,07";"91,98";"-";"0,00";"418,09";"BONIFICO BANCARIO";"Valido";"-";"2023";"122"
"2023";"COMPETENZA";"Mandato";"13/03/2023";"135";"IVA SPLIT PAYMENT SU FATT. BD00027625 - TELECOM ITALIA S.P.A.- VINCOLATO A REVERSALE 222";"53 - Ritenute per conto terzi";"0 - Ritenute per conto terzi";"AGENZIA DELLE ENTRATE  ";"34,95";"-";"0,00";"0,00";"34,95";"MODELLO F 24";"Valido";"-";"2023";"121"
"2023";"COMPETENZA";"Mandato";"13/03/2023";"134";"IVA SPLIT PAYMENT SU FATT. 8D00027564 - TELECOM ITALIA S.P.A. - VINCOLATO A REVERSALE 221";"53 - Ritenute per conto terzi";"0 - Ritenute per conto terzi";"AGENZIA DELLE ENTRATE  ";"35,49";"-";"0,00";"0,00";"35,49";"MODELLO F 24";"Valido";"-";"2023";"120"
"2023";"COMPETENZA";"Mandato";"13/03/2023";"133";"IVA SPLIT PAYMENT SU FATT. 8D00027755 - TELECOM ITALIA S.P.A. - VINCOLATO A REVERSALE 220";"53 - Ritenute per conto terzi";"0 - Ritenute per conto terzi";"AGENZIA DELLE ENTRATE  ";"30,80";"-";"0,00";"0,00";"30,80";"MODELLO F 24";"Valido";"-";"2023";"119"
"2023";"COMPETENZA";"Mandato";"13/03/2023";"132";"IVA SPLIT PAYMENT SU FATT. 2186 - EUREKA SOC. COOPERATIVA - VINCOLATO A REVERSALE 219";"53 - Ritenute per conto terzi";"0 - Ritenute per conto terzi";"AGENZIA DELLE ENTRATE  ";"16,01";"-";"0,00";"0,00";"16,01";"MODELLO F 24";"Valido";"-";"2023";"118"
"2023";"COMPETENZA";"Mandato";"13/03/2023";"131";"IVA SPLIT PAYMENT SU FATT. FT000198 - INFO.ERA SRL - VINCOLATO A REVERSALE 204";"53 - Ritenute per conto terzi";"0 - Ritenute per conto terzi";"AGENZIA DELLE ENTRATE  ";"10,56";"-";"0,00";"0,00";"10,56";"MODELLO F 24";"Valido";"-";"2023";"117"
"2023";"COMPETENZA";"Mandato";"13/03/2023";"130";"IVA SPLIT PAYMENT SU FATT. PROCED - VINCOLATO A REVERSALE 200";"53 - Ritenute per conto terzi";"0 - Ritenute per conto terzi";"AGENZIA DELLE ENTRATE  ";"278,15";"-";"0,00";"0,00";"278,15";"MODELLO F 24";"Valido";"-";"2023";"116"
"2023";"COMPETENZA";"Mandato";"13/03/2023";"129";"IVA SPLIT PAYMENT SU FATT. 2023S3000181 - PROCED S.R.L. - VINCOLATO A REVERSALE 199";"53 - Ritenute per conto terzi";"0 - Ritenute per conto terzi";"AGENZIA DELLE ENTRATE  ";"298,32";"-";"0,00";"0,00";"298,32";"MODELLO F 24";"Valido";"-";"2023";"115"
"2023";"COMPETENZA";"Mandato";"13/03/2023";"128";"Pagamento fattura n.8D00027625 del 09/02/2023  - Rif. Reversale n. 222";"27 - Spese telefoniche, fax e collegamento Internet";"0 - Spese telefoniche, fax e collegamento Internet";"TELECOM ITALIA S.P.A.  ";"34,95";"34,95";"-";"0,00";"0,00";"REVERSALE VINCOLATA A MANDATI";"Valido";"-";"2023";"114"
"2023";"COMPETENZA";"Mandato";"13/03/2023";"127";"Pagamento fattura n.8D00027625 del 09/02/2023 ";"27 - Spese telefoniche, fax e collegamento Internet";"0 - Spese telefoniche, fax e collegamento Internet";"TELECOM ITALIA S.P.A.  ";"158,87";"0,00";"-";"0,00";"158,87";"REGOLARIZZAZIONE";"Valido";"-";"2023";"114"
"2023";"COMPETENZA";"Mandato";"13/03/2023";"126";"Pagamento fattura n.8D00027564 del 09/02/2023  - Rif. Reversale n. 221";"27 - Spese telefoniche, fax e collegamento Internet";"0 - Spese telefoniche, fax e collegamento Internet";"TELECOM ITALIA S.P.A.  ";"35,49";"35,49";"-";"0,00";"0,00";"REVERSALE VINCOLATA A MANDATI";"Valido";"-";"2023";"113"
"2023";"COMPETENZA";"Mandato";"13/03/2023";"125";"Pagamento fattura n.8D00027564 del 09/02/2023 ";"27 - Spese telefoniche, fax e collegamento Internet";"0 - Spese telefoniche, fax e collegamento Internet";"TELECOM ITALIA S.P.A.  ";"161,32";"0,00";"-";"0,00";"161,32";"REGOLARIZZAZIONE";"Valido";"-";"2023";"113"
"2023";"COMPETENZA";"Mandato";"13/03/2023";"124";"Pagamento fattura n.8D00027755 del 09/02/2023  - Rif. Reversale n. 220";"27 - Spese telefoniche, fax e collegamento Internet";"0 - Spese telefoniche, fax e collegamento Internet";"TELECOM ITALIA S.P.A.  ";"30,80";"30,80";"-";"0,00";"0,00";"REVERSALE VINCOLATA A MANDATI";"Valido";"-";"2023";"112"
"2023";"COMPETENZA";"Mandato";"13/03/2023";"123";"Pagamento fattura n.8D00027755 del 09/02/2023 ";"27 - Spese telefoniche, fax e collegamento Internet";"0 - Spese telefoniche, fax e collegamento Internet";"TELECOM ITALIA S.P.A.  ";"140,00";"0,00";"-";"0,00";"140,00";"REGOLARIZZAZIONE";"Valido";"-";"2023";"112"
"2023";"COMPETENZA";"Mandato";"13/03/2023";"122";"Pagamento fattura n.2186 del 28/02/2023  - Rif. Reversale n. 219";"26 - Spese postali";"0 - Spese postali";"EUREKA SOC. COOPERATIVA  ";"121,54";"16,01";"-";"0,00";"105,53";"BONIFICO BANCARIO";"Valido";"-";"2023";"111"
"2023";"COMPETENZA";"Mandato";"08/03/2023";"121";"ARROTONDAMENTO SU PAGAMENTO F 24 FEBBRAIO";"19 - Spese minute varie";"0 - Spese minute varie";"AGENZIA DELLE ENTRATE  ";"15,44";"-";"0,00";"0,00";"15,44";"MODELLO F 24";"Valido";"-";"2023";"110"
"2023";"COMPETENZA";"Mandato";"08/03/2023";"120";"INPDAP FEBBRAIO";"13 - Contributi previdenziali e assistenziali";"0 - Contributi previdenziali e assistenziali";"AGENZIA DELLE ENTRATE  ";"12,16";"-";"0,00";"0,00";"12,16";"MODELLO F 24";"Valido";"-";"2023";"109"
"2023";"COMPETENZA";"Mandato";"08/03/2023";"119";"IRAP FEBBRAIO";"13 - Contributi previdenziali e assistenziali";"0 - Contributi previdenziali e assistenziali";"AGENZIA DELLE ENTRATE  ";"861,31";"-";"0,00";"0,00";"861,31";"MODELLO F 24";"Valido";"-";"2023";"108"
"2023";"COMPETENZA";"Mandato";"08/03/2023";"118";"INPS ENTE FEBBRAIO";"13 - Contributi previdenziali e assistenziali";"0 - Contributi previdenziali e assistenziali";"AGENZIA DELLE ENTRATE  ";"2.412,67";"-";"0,00";"0,00";"2.412,67";"MODELLO F 24";"Valido";"-";"2023";"107"
"2023";"COMPETENZA";"Mandato";"08/03/2023";"117";"INPS DIPENDENTI FEBBRAIO";"51 - Ritenute previdenziali e assistenziali lavoro dipendente";"0 - Ritenute previdenziali e assistenziali lavoro dipendente";"AGENZIA DELLE ENTRATE  ";"597,02";"-";"0,00";"0,00";"597,02";"MODELLO F 24";"Valido";"-";"2023";"106"
"2023";"COMPETENZA";"Mandato";"08/03/2023";"116";"TRIBUTI E CONGUAGLI DEMARCHI DENISE";"37 - Imposte, tasse, tributi e bolli";"0 - Imposte, tasse, tributi e bolli";"AGENZIA DELLE ENTRATE  ";"1.329,56";"-";"0,00";"0,00";"1.329,56";"MODELLO F 24";"Valido";"-";"2023";"105"
"2023";"COMPETENZA";"Mandato";"08/03/2023";"115";"IRPEF STIPENDI FEBBRAIO 2023";"47 - Ritenute erariali per lavoro dipendente";"0 - Ritenute erariali per lavoro dipendente";"AGENZIA DELLE ENTRATE  ";"1.789,32";"-";"0,00";"0,00";"1.789,32";"MODELLO F 24";"Valido";"-";"2023";"104"
"2023";"COMPETENZA";"Mandato";"07/03/2023";"114";"Pagamento fattura n.FT000198 del 28/02/2023  - Rif. Reversale n. 204";"18 - Spese gestione fotocopiatrice, fax e sistema informatico";"0 - Spese gestione fotocopiatrice, fax e sistema informatico";"INFO.ERA SRL  ";"58,56";"10,56";"-";"0,00";"48,00";"BONIFICO BANCARIO";"Valido";"-";"2023";"103"
"2023";"COMPETENZA";"Mandato";"06/03/2023";"113";"Pagamento fatture   - Rif. Reversale n. 200";"17 - Cancelleria, stampati e rilegatura";"0 - Cancelleria, stampati e rilegatura";"PROCED S.R.L.  ";"1.542,45";"278,15";"-";"0,00";"1.264,30";"BONIFICO BANCARIO";"Valido";"-";"2023";"102"
"2023";"COMPETENZA";"Mandato";"06/03/2023";"112";"Pagamento fatture   - Rif. Reversale n. 199";"42 - Acquisto macchine, attrezzature per gli uffici e procedure informatiche";"0 - Acquisto macchine, attrezzature per gli uffici e procedure informatiche";"PROCED S.R.L.  ";"1.654,32";"298,32";"-";"-";"1.356,00";"BONIFICO BANCARIO";"Valido";"-";"2023";"101"
"2023";"COMPETENZA";"Mandato";"03/03/2023";"111";"RITENUTA D'ACCONTO SU FATT. 02/2023 - AVV. PIERO LUGNANI - VINCOLATO A REVERSALE 190";"46 - Ritenute erariali per lavoro autonomo";"0 - Ritenute erariali per lavoro autonomo";"AGENZIA DELLE ENTRATE  ";"502,96";"-";"0,00";"0,00";"502,96";"MODELLO F 24";"Valido";"-";"2023";"100"
"2023";"COMPETENZA";"Mandato";"03/03/2023";"110";"IVA SPLIT PAYMENT SU FATT. 0000651501AMC12023 - MANZONI S.P.A. - VINCOLATO A REVERSALE 194";"53 - Ritenute per conto terzi";"0 - Ritenute per conto terzi";"AGENZIA DELLE ENTRATE  ";"68,20";"-";"0,00";"0,00";"68,20";"MODELLO F 24";"Valido";"-";"2023";"99"
"2023";"COMPETENZA";"Mandato";"03/03/2023";"109";"IVA SPLIT PAYMENT SU FATT. 000167 - QUERCIAMBIENTE SOCIETA' COOPERATIVA SOCIALE - VINCOLATO A REVERSALE 193";"53 - Ritenute per conto terzi";"0 - Ritenute per conto terzi";"AGENZIA DELLE ENTRATE  ";"119,95";"-";"0,00";"0,00";"119,95";"MODELLO F 24";"Valido";"-";"2023";"98"
"2023";"COMPETENZA";"Mandato";"03/03/2023";"108";"IVA SPLIT PAYMENT SU FATT. 832300489479 - HERA COMM. SRL - VINCOLATO A REVERSALE 187";"53 - Ritenute per conto terzi";"0 - Ritenute per conto terzi";"AGENZIA DELLE ENTRATE  ";"150,56";"-";"0,00";"0,00";"150,56";"MODELLO F 24";"Valido";"-";"2023";"97"
"2023";"COMPETENZA";"Mandato";"03/03/2023";"107";"IVA SPLIT PAYMENT SU FATT. 712300097832 - HERA COMM. SRL - VINCOLATO A REVERSALE 186";"53 - Ritenute per conto terzi";"0 - Ritenute per conto terzi";"AGENZIA DELLE ENTRATE  ";"2,77";"-";"0,00";"0,00";"2,77";"MODELLO F 24";"Valido";"-";"2023";"96"
"2023";"COMPETENZA";"Mandato";"03/03/2023";"106";"IVA SPLIT PAYMENT SU FATT. 6/E - RADICI SUCC. DI P. E M. GALLINOTTI SNC - VINCOLATO A REVERSALE 185";"53 - Ritenute per conto terzi";"0 - Ritenute per conto terzi";"AGENZIA DELLE ENTRATE  ";"825,66";"-";"0,00";"0,00";"825,66";"MODELLO F 24";"Valido";"-";"2023";"95"
"2023";"COMPETENZA";"Mandato";"03/03/2023";"105";"IVA SPLIT PAYMENT SU FATT. 02/PA - I.P.S.U. DI ZONTA CALLIGARIS ANNAMARIA & C. SAS - VINCOLATO A REVERSALE 184";"53 - Ritenute per conto terzi";"0 - Ritenute per conto terzi";"AGENZIA DELLE ENTRATE  ";"95,70";"-";"0,00";"0,00";"95,70";"MODELLO F 24";"Valido";"-";"2023";"94"
"2023";"COMPETENZA";"Mandato";"03/03/2023";"104";"Pagamento fattura n.0000651501AMC12023 del 28/02/2023  - Rif. Reversale n. 194";"20 - Spese di rappresentanza";"0 - Spese di rappresentanza";"MANZONI S.P.A.  ";"378,20";"68,20";"-";"0,00";"310,00";"BONIFICO BANCARIO";"Valido";"-";"2023";"93"
"2023";"COMPETENZA";"Mandato";"03/03/2023";"103";"Pagamento fattura n.000167 del 28/02/2023  - Rif. Reversale n. 193";"25 - Spese manutenzione sede";"0 - Spese manutenzione sede";"QUERCIAMBIENTE SOCIETA' COOPERATIVA SOCIALE ";"703,35";"119,95";"-";"0,00";"583,40";"BONIFICO BANCARIO";"Valido";"-";"2023";"92"
"2023";"COMPETENZA";"Mandato";"02/03/2023";"102";"Pagamento fattura n.02/2023 del 01/03/2023  - Rif. Reversale n. 190";"32 - Spese legali, consulenza del lavoro, R.S.P.P.";"0 - Spese legali, consulenza del lavoro, R.S.P.P.";"AVV. PIERO LUGNANI  ";"3.190,80";"0,00";"-";"502,96";"2.687,84";"BONIFICO BANCARIO";"Valido";"-";"2023";"91"
"2023";"COMPETENZA";"Mandato";"01/03/2023";"101";"PAGAMENTO MARCHE DA BOLLO PER ISTANZA  CONVENZIONE AGENZIA ENTRATE";"37 - Imposte, tasse, tributi e bolli";"0 - Imposte, tasse, tributi e bolli";"AGENZIA DELLE ENTRATE  ";"32,00";"-";"0,00";"0,00";"32,00";"MODELLO F 24";"Valido";"-";"2023";"90"
"2023";"COMPETENZA";"Mandato";"01/03/2023";"100";"Pagamento fattura n.832300489479 del 25/01/2023  - Rif. Reversale n. 187";"31 - Energia elettrica, acqua e gas";"0 - Energia elettrica, acqua e gas";"HERA COMM. SRL  ";"150,56";"150,56";"-";"0,00";"0,00";"REVERSALE VINCOLATA A MANDATI";"Valido";"-";"2023";"89"
"2023";"COMPETENZA";"Mandato";"01/03/2023";"99";"Pagamento fattura n.832300489479 del 25/01/2023 ";"31 - Energia elettrica, acqua e gas";"0 - Energia elettrica, acqua e gas";"HERA COMM. SRL  ";"684,36";"0,00";"-";"0,00";"684,36";"REGOLARIZZAZIONE";"Valido";"-";"2023";"89"
"2023";"COMPETENZA";"Mandato";"01/03/2023";"98";"Pagamento fattura n.712300097832 del 01/02/2023  - Rif. Reversale n. 186";"31 - Energia elettrica, acqua e gas";"0 - Energia elettrica, acqua e gas";"HERA COMM. SRL  ";"2,77";"2,77";"-";"0,00";"0,00";"REVERSALE VINCOLATA A MANDATI";"Valido";"-";"2023";"88"
"2023";"COMPETENZA";"Mandato";"01/03/2023";"97";"Pagamento fattura n.712300097832 del 01/02/2023 ";"31 - Energia elettrica, acqua e gas";"0 - Energia elettrica, acqua e gas";"HERA COMM. SRL  ";"35,87";"0,00";"-";"0,00";"35,87";"REGOLARIZZAZIONE";"Valido";"-";"2023";"88"
"2023";"COMPETENZA";"Mandato";"01/03/2023";"96";"Pagamento fattura n.6/E del 28/02/2023  - Rif. Reversale n. 185";"25 - Spese manutenzione sede";"0 - Spese manutenzione sede";"RADICI SUCC. DI P. E M. GALLINOTTI SNC ";"4.578,66";"825,66";"-";"0,00";"3.753,00";"BONIFICO BANCARIO";"Valido";"-";"2023";"87"
"2023";"COMPETENZA";"Mandato";"28/02/2023";"95";"Pagamento fattura n.02/PA del 28/02/2023  - Rif. Reversale n. 184";"24 - Menutenzioni e riparazioni ordinarie: macchine, mobili e pulizie sede";"0 - Menutenzioni e riparazioni ordinarie: macchine, mobili e pulizie sede";"I.P.S.U. DI ZONTA CALLIGARIS ANNAMARIA & C SAS  ";"530,70";"95,70";"-";"0,00";"435,00";"BONIFICO BANCARIO";"Valido";"-";"2023";"86"
"2023";"COMPETENZA";"Mandato";"27/02/2023";"94";"IVA SPLIT PAYMENT SU FATT. AP03401463 - VODAFONE ITALIA S.P.A. - VINCOLATO A REVERSALE 181";"53 - Ritenute per conto terzi";"0 - Ritenute per conto terzi";"AGENZIA DELLE ENTRATE  ";"5,28";"-";"0,00";"0,00";"5,28";"MODELLO F 24";"Valido";"-";"2023";"85"
"2023";"COMPETENZA";"Mandato";"27/02/2023";"93";"IVA SPLIT PAYMENT SU FATT. FT000175 - INFO.ERA SRL - VINCOLATO A REVERSALE 180";"53 - Ritenute per conto terzi";"0 - Ritenute per conto terzi";"AGENZIA DELLE ENTRATE  ";"20,46";"-";"0,00";"0,00";"20,46";"MODELLO F 24";"Valido";"-";"2023";"84"
"2023";"COMPETENZA";"Mandato";"27/02/2023";"92";"IVA SPLIT PAYMENT SU FATT. 000001PA - GRAMAGLIA & C. SRL - VINCOLATO A REVERSALE 179";"53 - Ritenute per conto terzi";"0 - Ritenute per conto terzi";"AGENZIA DELLE ENTRATE  ";"208,34";"-";"0,00";"0,00";"208,34";"MODELLO F 24";"Valido";"-";"2023";"83"
"2023";"COMPETENZA";"Mandato";"27/02/2023";"91";"IVA SPLIT PAYMENT SU FATT. 412302109663 - HERA COMM. SRL - VINCOLATO A REVERSALE 147";"53 - Ritenute per conto terzi";"0 - Ritenute per conto terzi";"AGENZIA DELLE ENTRATE  ";"14,11";"-";"0,00";"0,00";"14,11";"MODELLO F 24";"Valido";"-";"2023";"82"
"2023";"COMPETENZA";"Mandato";"27/02/2023";"90";"Pagamento fattura n.AP03401463 del 26/02/2023  - Rif. Reversale n. 181";"27 - Spese telefoniche, fax e collegamento Internet";"0 - Spese telefoniche, fax e collegamento Internet";"VODAFONE ITALIA S.p.A. ";"29,28";"5,28";"-";"0,00";"24,00";"BONIFICO BANCARIO";"Valido";"-";"2023";"81"
"2023";"COMPETENZA";"Mandato";"27/02/2023";"89";"Pagamento fattura n.FT000175 del 23/02/2023  - Rif. Reversale n. 180";"18 - Spese gestione fotocopiatrice, fax e sistema informatico";"0 - Spese gestione fotocopiatrice, fax e sistema informatico";"INFO.ERA SRL  ";"113,46";"20,46";"-";"0,00";"93,00";"BONIFICO BANCARIO";"Valido";"-";"2023";"80"
"2023";"COMPETENZA";"Mandato";"24/02/2023";"88";"Pagamento fattura n.000001PA del 17/02/2023  - Rif. Reversale n. 179";"18 - Spese gestione fotocopiatrice, fax e sistema informatico";"0 - Spese gestione fotocopiatrice, fax e sistema informatico";"GRAMAGLIA & C. SRL  ";"1.155,34";"208,34";"-";"0,00";"947,00";"BONIFICO BANCARIO";"Valido";"-";"2023";"79"
"2023";"COMPETENZA";"Mandato";"23/02/2023";"87";"INDENNITA' E STRAORDINARI FEBBRAIO";"9 - Indennit�, trattamento accessorio e lavoro straordinario";"0 - Indennit�, trattamento accessorio e lavoro straordinario";"OZBOLT STEFANO";"182,58";"-";"0,00";"0,00";"182,58";"BONIFICO BANCARIO";"Valido";"VALUTA FISSA AL 27/02/2023 SENZA SPESE A CARICO DEL BENEFICIARIO";"2023";"78"
"2023";"COMPETENZA";"Mandato";"23/02/2023";"86";"FEBBRAIO";"10 - Indennit� mensa";"0 - Indennit� mensa";"SANTIN COSTANZA";"37,03";"-";"0,00";"0,00";"37,03";"BONIFICO BANCARIO";"Valido";"VALUTA FISSA AL 27/02/2023 SENZA SPESE A CARICO DEL BENEFICIARIO";"2023";"77"
"2023";"COMPETENZA";"Mandato";"23/02/2023";"85";"FEBBRAIO";"10 - Indennit� mensa";"0 - Indennit� mensa";"OZBOLT STEFANO";"47,61";"-";"0,00";"0,00";"47,61";"BONIFICO BANCARIO";"Valido";"VALUTA FISSA AL 27/02/2023 SENZA SPESE A CARICO DEL BENEFICIARIO";"2023";"76"
"2023";"COMPETENZA";"Mandato";"23/02/2023";"84";"STIPENDIO FEBBRAIO";"6 - Trattamento economico fondamentale";"0 - Trattamento economico fondamentale";"SANTIN COSTANZA";"4.552,41";"-";"421,17";"1.299,27";"2.831,97";"BONIFICO BANCARIO";"Valido";"VALUTA FISSA AL 27/02/2023 SENZA SPESE A CARICO DEL BENEFICIARIO";"2023";"74"
"2023";"COMPETENZA";"Mandato";"23/02/2023";"83";"STIPENDIO FEBBRAIO";"6 - Trattamento economico fondamentale";"0 - Trattamento economico fondamentale";"OZBOLT STEFANO";"2.256,31";"-";"175,85";"489,65";"1.590,81";"BONIFICO BANCARIO";"Valido";"VALUTA FISSA AL 27/02/2023 SENZA SPESE A CARICO DEL BENEFICIARIO";"2023";"73"
"2023";"COMPETENZA";"Mandato";"20/02/2023";"82";"Pagamento fattura n.15/001 del 16/02/2023 ";"25 - Spese manutenzione sede";"0 - Spese manutenzione sede";"DANIELE FURLAN ";"317,00";"0,00";"-";"0,00";"317,00";"BONIFICO BANCARIO";"Valido";"-";"2023";"72"
"2023";"COMPETENZA";"Mandato";"17/02/2023";"81";"Pagamento fattura n.412302109663 del 13/02/2023  - Rif. Reversale n. 147";"31 - Energia elettrica, acqua e gas";"0 - Energia elettrica, acqua e gas";"HERA COMM. SRL  ";"296,35";"14,11";"-";"0,00";"282,24";"BONIFICO BANCARIO";"Valido";"-";"2023";"71"
"2023";"COMPETENZA";"Mandato";"17/02/2023";"80";"RINFRESCO COMMEMORAZIONE DOTT. PAOLO CORTIVO";"20 - Spese di rappresentanza";"0 - Spese di rappresentanza";"DEMARCHI DENISE";"202,00";"-";"0,00";"0,00";"202,00";"CONTANTI";"Valido";"-";"2023";"70"
"2023";"COMPETENZA";"Mandato";"16/02/2023";"79";"ACQUISTO BOTTIGLIE PROSECCO PER PRESENTAZIONE LIBRO DOTT. CORTIVO";"20 - Spese di rappresentanza";"0 - Spese di rappresentanza";"DEMARCHI DENISE";"120,00";"-";"0,00";"0,00";"120,00";"CONTANTI";"Valido";"-";"2023";"69"
"2023";"RESIDUO";"Mandato";"13/02/2023";"78";"SALDO QUOTE FNOMCEO 2022";"45 - Quota FNOMCeO per tassa annuale a esazione diretta";"0 - Quota FNOMCeO per tassa annuale a esazione diretta";"FNOMCEO  ";"874,00";"-";"0,00";"0,00";"874,00";"PAGOPA";"Valido";"-";"2022";"604"
"2023";"RESIDUO";"Mandato";"13/02/2023";"77";"SALDO QUOTE FNOMCEO 2022";"44 - Quota FNOMCeO per tassa annuale a ruolo";"0 - Quota FNOMCeO per tassa annuale a ruolo";"FNOMCEO  ";"11.233,20";"-";"0,00";"0,00";"11.233,20";"PAGOPA";"Valido";"-";"2022";"603"
"2023";"COMPETENZA";"Mandato";"13/02/2023";"76";"PREMIO INAIL";"12 - Assicurazione del personale";"0 - Assicurazione del personale";"AGENZIA DELLE ENTRATE  ";"573,98";"-";"0,00";"0,00";"573,98";"MODELLO F 24";"Valido";"-";"2023";"68"
"2023";"COMPETENZA";"Mandato";"10/02/2023";"75";"STRENNE CAO NAZIONALE - TRIESTE, 10 E 11 FEBBRAIO 2023";"20 - Spese di rappresentanza";"0 - Spese di rappresentanza";"DEMARCHI DENISE";"270,00";"-";"0,00";"0,00";"270,00";"CONTANTI";"Valido";"-";"2023";"67"
"2023";"COMPETENZA";"Mandato";"10/02/2023";"74";"CONTRIBUTO ANNUALE ARAN";"37 - Imposte, tasse, tributi e bolli";"0 - Imposte, tasse, tributi e bolli";"ARAN ";"9,30";"-";"0,00";"0,00";"9,30";"PAGOPA";"Valido";"-";"2023";"66"
"2023";"COMPETENZA";"Mandato";"09/02/2023";"73";"IVA SPLIT PAYMENT SU FATT. FT000059 - INFO.ERA SRL - VINCOLATO A REVERSALE 131";"53 - Ritenute per conto terzi";"0 - Ritenute per conto terzi";"AGENZIA DELLE ENTRATE  ";"114,95";"-";"0,00";"0,00";"114,95";"MODELLO F 24";"Valido";"-";"2023";"65"
"2023";"COMPETENZA";"Mandato";"09/02/2023";"72";"IVA SPLIT PAYMENT SU FATT. 1011 - EUREKA SOC. COOPERATIVA - VINCOLATO A REVERSALE 130";"53 - Ritenute per conto terzi";"0 - Ritenute per conto terzi";"AGENZIA DELLE ENTRATE  ";"19,30";"-";"0,00";"0,00";"19,30";"MODELLO F 24";"Valido";"-";"2023";"64"
"2023";"COMPETENZA";"Mandato";"09/02/2023";"71";"IVA SPLIT PAYMENT SU FATT. 188 - IGIENE SICUREZZA AMBIENTE QUALITA' - VINCOLATO A REVERSALE 129";"53 - Ritenute per conto terzi";"0 - Ritenute per conto terzi";"AGENZIA DELLE ENTRATE  ";"396,00";"-";"0,00";"0,00";"396,00";"MODELLO F 24";"Valido";"-";"2023";"63"
"2023";"COMPETENZA";"Mandato";"09/02/2023";"70";"IVA SPLIT PAYMENT SU FATT. FT000111 - INFO.ERA SRL - VINCOLATO A REVERSALE 128";"53 - Ritenute per conto terzi";"0 - Ritenute per conto terzi";"AGENZIA DELLE ENTRATE  ";"147,40";"-";"0,00";"0,00";"147,40";"MODELLO F 24";"Valido";"-";"2023";"62"
"2023";"COMPETENZA";"Mandato";"09/02/2023";"69";"IVA SPLIT PAYMENT SU FATT. 2007_86 - GEDI DIGITAL SRL - VINCOLATO A REVERSALE 127";"53 - Ritenute per conto terzi";"0 - Ritenute per conto terzi";"AGENZIA DELLE ENTRATE  ";"11,54";"-";"0,00";"0,00";"11,54";"MODELLO F 24";"Valido";"-";"2023";"61"
"2023";"COMPETENZA";"Mandato";"09/02/2023";"68";"CARTA CONTABILE 8 (insoluto rid dott. guerin)";"38 - Rimborso quote di iscrizione e tasse non dovute";"0 - Rimborso quote di iscrizione e tasse non dovute";"ISCRITTI  ";"185,00";"-";"0,00";"0,00";"185,00";"COPERTURA SOSPESI";"Valido";"-";"2023";"60"
"2023";"COMPETENZA";"Mandato";"09/02/2023";"67";"Pagamento fattura n.FT000059 del 31/01/2023  - Rif. Reversale n. 131";"18 - Spese gestione fotocopiatrice, fax e sistema informatico";"0 - Spese gestione fotocopiatrice, fax e sistema informatico";"INFO.ERA SRL  ";"637,45";"114,95";"-";"0,00";"522,50";"BONIFICO BANCARIO";"Valido";"-";"2023";"59"
"2023";"COMPETENZA";"Mandato";"09/02/2023";"66";"Pagamento fattura n.1011 del 31/01/2023  - Rif. Reversale n. 130";"26 - Spese postali";"0 - Spese postali";"EUREKA SOC. COOPERATIVA  ";"126,67";"19,30";"-";"0,00";"107,37";"BONIFICO BANCARIO";"Valido";"-";"2023";"58"
"2023";"COMPETENZA";"Mandato";"09/02/2023";"65";"Pagamento fattura n.188 del 08/02/2023  - Rif. Reversale n. 129";"32 - Spese legali, consulenza del lavoro, R.S.P.P.";"0 - Spese legali, consulenza del lavoro, R.S.P.P.";"IGIENE SICUREZZA AMBIENTE QUALITA'  ";"2.196,00";"396,00";"-";"0,00";"1.800,00";"BONIFICO BANCARIO";"Valido";"-";"2023";"57"
"2023";"COMPETENZA";"Mandato";"09/02/2023";"64";"Pagamento fattura n.FT000111 del 31/01/2023  - Rif. Reversale n. 128";"18 - Spese gestione fotocopiatrice, fax e sistema informatico";"0 - Spese gestione fotocopiatrice, fax e sistema informatico";"INFO.ERA SRL  ";"817,40";"147,40";"-";"0,00";"670,00";"BONIFICO BANCARIO";"Valido";"-";"2023";"56"
"2023";"COMPETENZA";"Mandato";"09/02/2023";"63";"Pagamento fattura n.2007_86 del 28/01/2023  - Rif. Reversale n. 127";"16 - Abbonamenti a riviste amministrative e acquisto pubblicazioni varie";"0 - Abbonamenti a riviste amministrative e acquisto pubblicazioni varie";"GEDI DIGITAL SRL ";"300,00";"11,54";"-";"0,00";"288,46";"BONIFICO BANCARIO";"Valido";"-";"2023";"55"
"2023";"COMPETENZA";"Mandato";"06/02/2023";"62";"IMPOSTA SOSTITUTIVA TFR";"43 - Accantonamento indennit� anzianit� e similari";"0 - Accantonamento indennit� anzianit� e similari";"AGENZIA DELLE ENTRATE  ";"1.979,64";"-";"0,00";"0,00";"1.979,64";"MODELLO F 24";"Valido";"-";"2023";"54"
"2023";"COMPETENZA";"Mandato";"06/02/2023";"61";"IRAP STIPENDI GENNAIO";"13 - Contributi previdenziali e assistenziali";"0 - Contributi previdenziali e assistenziali";"AGENZIA DELLE ENTRATE  ";"9,59";"-";"0,00";"0,00";"9,59";"MODELLO F 24";"Valido";"-";"2023";"53"
"2023";"COMPETENZA";"Mandato";"06/02/2023";"60";"INPDAP STIPENDI GENNAIO";"13 - Contributi previdenziali e assistenziali";"0 - Contributi previdenziali e assistenziali";"AGENZIA DELLE ENTRATE  ";"815,07";"-";"0,00";"0,00";"815,07";"MODELLO F 24";"Valido";"-";"2023";"52"
"2023";"COMPETENZA";"Mandato";"06/02/2023";"59";"INPS ENTE GENNAIO";"13 - Contributi previdenziali e assistenziali";"0 - Contributi previdenziali e assistenziali";"AGENZIA DELLE ENTRATE  ";"2.283,14";"-";"0,00";"0,00";"2.283,14";"MODELLO F 24";"Valido";"-";"2023";"51"
"2023";"COMPETENZA";"Mandato";"06/02/2023";"58";"INPS STIPENDI GENNAIO - VINCOLATO A REVERSALI 47-49-51";"51 - Ritenute previdenziali e assistenziali lavoro dipendente";"0 - Ritenute previdenziali e assistenziali lavoro dipendente";"AGENZIA DELLE ENTRATE  ";"887,40";"-";"0,00";"0,00";"887,40";"MODELLO F 24";"Valido";"-";"2023";"50"
"2023";"COMPETENZA";"Mandato";"06/02/2023";"57";"IRPEF STIPENDI GENNAIO - VINCOLATO A REVERSALI 48-50-52";"47 - Ritenute erariali per lavoro dipendente";"0 - Ritenute erariali per lavoro dipendente";"AGENZIA DELLE ENTRATE  ";"2.095,45";"-";"0,00";"0,00";"2.095,45";"MODELLO F 24";"Valido";"-";"2023";"49"
"2023";"COMPETENZA";"Mandato";"06/02/2023";"56";"QUOTA PROVIDER ECM FVG 2023";"28 - Aggiornamento professionale e culturale";"0 - Aggiornamento professionale e culturale";"REGIONE AUTONOMA FRIULI VENEZIA GIULIA  ";"2.600,00";"-";"0,00";"0,00";"2.600,00";"PAGOPA";"Valido";"-";"2023";"48"
"2023";"COMPETENZA";"Mandato";"06/02/2023";"55";"POLIZZA N. 85991942";"3 - Spese assicurazione componenti organi istituzionali";"0 - Spese assicurazione componenti organi istituzionali";"ALLIANZ S.P.A. - MESSINA SPIGAGLIA ";"2.255,00";"-";"0,00";"0,00";"2.255,00";"BONIFICO BANCARIO";"Valido";"-";"2023";"47"
"2023";"COMPETENZA";"Mandato";"06/02/2023";"54";"IVA SPLIT PAYMENT SU FATT. 712300097830 - HERA COMM. SRL - VINCOLATO A REVERSALE 114";"53 - Ritenute per conto terzi";"0 - Ritenute per conto terzi";"AGENZIA DELLE ENTRATE  ";"3,06";"-";"0,00";"0,00";"3,06";"COPERTURA SOSPESI";"Valido";"-";"2023";"46"
"2023";"COMPETENZA";"Mandato";"06/02/2023";"53";"IVA SPLIT PAYMENT SU FATT. FATTPA3_23 - TIPOGRAFIA TRIESTINA TRIESTE - VINCOLATO A REVERSALE 113";"53 - Ritenute per conto terzi";"0 - Ritenute per conto terzi";"AGENZIA DELLE ENTRATE  ";"264,00";"-";"0,00";"0,00";"264,00";"COPERTURA SOSPESI";"Valido";"-";"2023";"45"
"2023";"COMPETENZA";"Mandato";"06/02/2023";"52";"IVA SPLIT PAYMENT SU FATT. 0000650636AMC12023 - MANZONI S.P.A. - VINCOLATO A REVERSALE 112";"53 - Ritenute per conto terzi";"0 - Ritenute per conto terzi";"AGENZIA DELLE ENTRATE  ";"35,20";"-";"0,00";"0,00";"35,20";"COPERTURA SOSPESI";"Valido";"-";"2023";"44"
"2023";"COMPETENZA";"Mandato";"06/02/2023";"51";"IVA SPLIT PAYMENT SU FATT. 01/PA - I.P.S.U. DI ZONTA CALLIGARIS ANNAMARIA & C. SAS - VINCOLATO A REVERSALE 81";"53 - Ritenute per conto terzi";"0 - Ritenute per conto terzi";"AGENZIA DELLE ENTRATE  ";"95,70";"-";"0,00";"0,00";"95,70";"COPERTURA SOSPESI";"Valido";"-";"2023";"43"
"2023";"COMPETENZA";"Mandato";"06/02/2023";"50";"IVA SPLIT PAYMENT SU FATT. 2/AF - LA PORTIZZA S.R.L. - VINCOLATO A REVERSALE 80";"53 - Ritenute per conto terzi";"0 - Ritenute per conto terzi";"AGENZIA DELLE ENTRATE  ";"240,00";"-";"0,00";"0,00";"240,00";"COPERTURA SOSPESI";"Valido";"-";"2023";"42"
"2023";"COMPETENZA";"Mandato";"06/02/2023";"49";"Pagamento fattura n.712300097830 del 01/02/2023  - Rif. Reversale n. 114";"31 - Energia elettrica, acqua e gas";"0 - Energia elettrica, acqua e gas";"HERA COMM. SRL  ";"41,85";"3,06";"-";"0,00";"38,79";"BONIFICO BANCARIO";"Valido";"-";"2023";"41"
"2023";"COMPETENZA";"Mandato";"06/02/2023";"48";"Pagamento fattura n.FATTPA 3_23 del 01/02/2023  - Rif. Reversale n. 113";"14 - Spese pubblicazione albo e opuscoli vari";"0 - Spese pubblicazione albo e opuscoli vari";"TIPOGRAFIA TRIESTINA TRIESTE ";"1.464,00";"264,00";"-";"0,00";"1.200,00";"BONIFICO BANCARIO";"Valido";"-";"2023";"40"
"2023";"COMPETENZA";"Mandato";"06/02/2023";"47";"Pagamento fattura n.0000650636AMC12023 del 31/01/2023  - Rif. Reversale n. 112";"20 - Spese di rappresentanza";"0 - Spese di rappresentanza";"MANZONI S.P.A.  ";"195,20";"35,20";"-";"0,00";"160,00";"BONIFICO BANCARIO";"Valido";"-";"2023";"39"
"2023";"COMPETENZA";"Mandato";"01/02/2023";"46";"Pagamento fattura n.01/PA del 31/01/2023  - Rif. Reversale n. 81";"24 - Menutenzioni e riparazioni ordinarie: macchine, mobili e pulizie sede";"0 - Menutenzioni e riparazioni ordinarie: macchine, mobili e pulizie sede";"I.P.S.U. DI ZONTA CALLIGARIS ANNAMARIA & C SAS  ";"530,70";"95,70";"-";"0,00";"435,00";"BONIFICO BANCARIO";"Valido";"-";"2023";"38"
"2023";"RESIDUO";"Mandato";"01/02/2023";"45";"Pagamento fattura n.2/AF del 17/01/2023  - Rif. Reversale n. 80";"1 - Spese Assemblea Annuale";"0 - Spese Assemblea Annuale";"LA PORTIZZA S.R.L.  ";"2.640,00";"240,00";"-";"0,00";"2.400,00";"BONIFICO BANCARIO";"Valido";"-";"2022";"602"
"2023";"COMPETENZA";"Mandato";"30/01/2023";"44";"IVA SPLIT PAYMENT SU FATT. 2023-ES/D/4 - AZIENDA SANITARIA UNIVERSITARIA GIULIANO ISONTINA - VINCOLATO A REVERSALE 79";"53 - Ritenute per conto terzi";"0 - Ritenute per conto terzi";"AGENZIA DELLE ENTRATE  ";"990,00";"-";"0,00";"0,00";"990,00";"MODELLO F 24";"Valido";"-";"2023";"37"
"2023";"COMPETENZA";"Mandato";"30/01/2023";"43";"IVA SPLIT PAYMENT SU FATT. 412300915989 - HERA COMM. SRL - VINCOLATO A REVERSALE 46";"53 - Ritenute per conto terzi";"0 - Ritenute per conto terzi";"AGENZIA DELLE ENTRATE  ";"20,07";"-";"0,00";"0,00";"20,07";"MODELLO F 24";"Valido";"-";"2023";"36"
"2023";"COMPETENZA";"Mandato";"30/01/2023";"42";"IVA SPLIT PAYMENT SU FATTPA2_23 - TIPOGRAFIA TRIESTINA TRIESTE - VINCOLATO A REVERSALE 45";"53 - Ritenute per conto terzi";"0 - Ritenute per conto terzi";"AGENZIA DELLE ENTRATE  ";"110,00";"-";"0,00";"0,00";"110,00";"MODELLO F 24";"Valido";"-";"2023";"35"
"2023";"RESIDUO";"Mandato";"30/01/2023";"41";"Pagamento fattura n.2023-EI/D/59 del 24/01/2023";"28 - Aggiornamento professionale e culturale";"0 - Aggiornamento professionale e culturale";"AZIENDA SANITARIA UNIVERSITARIA GIULIANO ISONTINA - ASUGI ";"32,00";"0,00";"-";"0,00";"32,00";"BONIFICO BANCARIO";"Valido";"-";"2022";"601"
"2023";"RESIDUO";"Mandato";"30/01/2023";"40";"Pagamento fattura n.2023-ES/D/4 del 24/01/2023  - Rif. Reversale n. 79";"28 - Aggiornamento professionale e culturale";"0 - Aggiornamento professionale e culturale";"AZIENDA SANITARIA UNIVERSITARIA GIULIANO ISONTINA - ASUGI ";"5.490,00";"990,00";"-";"0,00";"4.500,00";"BONIFICO BANCARIO";"Valido";"-";"2022";"601"
"2023";"COMPETENZA";"Mandato";"24/01/2023";"39";"POLIZZA N. 026001044";"43 - Accantonamento indennit� anzianit� e similari";"0 - Accantonamento indennit� anzianit� e similari";"GENERALI ITALIA S.P.A. - AGENZIA TRIESTE UNITA' D'ITALIA 686 ";"3.364,48";"-";"0,00";"0,00";"3.364,48";"BONIFICO BANCARIO";"Valido";"-";"2023";"34"
"2023";"COMPETENZA";"Mandato";"23/01/2023";"38";"EROGAZIONE SERVIZIO ECONOMATO";"55 - Servizio economato";"0 - Servizio economato";"DEMARCHI DENISE";"1.000,00";"-";"0,00";"0,00";"1.000,00";"CONTANTI";"Valido";"-";"2023";"33"
"2023";"COMPETENZA";"Mandato";"23/01/2023";"37";"Pagamento fattura n.1 del 21/01/2023 ";"37 - Imposte, tasse, tributi e bolli";"0 - Imposte, tasse, tributi e bolli";"AIELLO GIOVANNI - FOTOGORNALISTA ";"2,00";"0,00";"-";"0,00";"2,00";"BONIFICO BANCARIO";"Valido";"-";"2023";"32"
"2023";"RESIDUO";"Mandato";"23/01/2023";"36";"Pagamento fatture  ";"1 - Spese Assemblea Annuale";"0 - Spese Assemblea Annuale";"AIELLO GIOVANNI - FOTOGORNALISTA ";"300,00";"0,00";"-";"-";"300,00";"BONIFICO BANCARIO";"Valido";"-";"2022";"596"
"2023";"COMPETENZA";"Mandato";"20/01/2023";"35";"GENNAIO";"10 - Indennit� mensa";"0 - Indennit� mensa";"SANTIN COSTANZA";"37,03";"-";"0,00";"0,00";"37,03";"BONIFICO BANCARIO";"Valido";"SENZA SPESE A CARICO DEL BENEFICIARIO - VALUTA FISSA AL 27/01/2023";"2023";"31"
"2023";"COMPETENZA";"Mandato";"20/01/2023";"34";"GENNAIO";"10 - Indennit� mensa";"0 - Indennit� mensa";"OZBOLT STEFANO";"37,03";"-";"0,00";"0,00";"37,03";"BONIFICO BANCARIO";"Valido";"SENZA SPESE A CARICO DEL BENEFICIARIO - VALUTA FISSA AL 27/01/2023";"2023";"30"
"2023";"COMPETENZA";"Mandato";"20/01/2023";"33";"GENNAIO";"10 - Indennit� mensa";"0 - Indennit� mensa";"DEMARCHI DENISE";"47,61";"-";"0,00";"0,00";"47,61";"BONIFICO BANCARIO";"Valido";"SENZA SPESE A CARICO DEL BENEFICIARIO - VALUTA FISSA AL 27/01/2023";"2023";"29"
"2023";"COMPETENZA";"Mandato";"20/01/2023";"32";"INDENNITA' E STRAORDINARI GENNAIO";"9 - Indennit�, trattamento accessorio e lavoro straordinario";"0 - Indennit�, trattamento accessorio e lavoro straordinario";"OZBOLT STEFANO";"525,36";"-";"0,00";"0,00";"525,36";"BONIFICO BANCARIO";"Valido";"SENZA SPESE A CARICO DEL BENEFICIARIO - VALUTA FISSA AL 27/01/2023";"2023";"28"
"2023";"COMPETENZA";"Mandato";"20/01/2023";"31";"INDENNITA' E STRAORDINARI GENNAIO";"9 - Indennit�, trattamento accessorio e lavoro straordinario";"0 - Indennit�, trattamento accessorio e lavoro straordinario";"DEMARCHI DENISE";"643,81";"-";"0,00";"0,00";"643,81";"BONIFICO BANCARIO";"Valido";"SENZA SPESE A CARICO DEL BENEFICIARIO - VALUTA FISSA AL 27/01/2023";"2023";"27"
"2023";"COMPETENZA";"Mandato";"20/01/2023";"30";"STIPENDIO GENNAIO";"6 - Trattamento economico fondamentale";"0 - Trattamento economico fondamentale";"SANTIN COSTANZA";"4.448,56";"-";"413,91";"1.265,68";"2.768,97";"BONIFICO BANCARIO";"Valido";"SENZA SPESE A CARICO DEL BENEFICIARIO - VALUTA FISSA AL 27/01/2023";"2023";"26"
"2023";"COMPETENZA";"Mandato";"20/01/2023";"29";"STIPENDIO GENNAIO";"6 - Trattamento economico fondamentale";"0 - Trattamento economico fondamentale";"OZBOLT STEFANO";"2.153,44";"-";"246,65";"465,18";"1.441,61";"BONIFICO BANCARIO";"Valido";"SENZA SPESE A CARICO DEL BENEFICIARIO - VALUTA FISSA AL 27/01/2023";"2023";"25"
"2023";"COMPETENZA";"Mandato";"20/01/2023";"28";"STIPENDIO GENNAIO";"6 - Trattamento economico fondamentale";"0 - Trattamento economico fondamentale";"DEMARCHI DENISE";"1.820,01";"-";"226,84";"364,59";"1.228,58";"BONIFICO BANCARIO";"Valido";"SENZA SPESE A CARICO DEL BENEFICIARIO - VALUTA FISSA AL 27/01/2023";"2023";"24"
"2023";"COMPETENZA";"Mandato";"19/01/2023";"27";"Pagamento fattura n.412300915989 del 16/01/2023  - Rif. Reversale n. 46";"31 - Energia elettrica, acqua e gas";"0 - Energia elettrica, acqua e gas";"HERA COMM. SRL  ";"407,14";"20,07";"-";"0,00";"387,07";"BONIFICO BANCARIO";"Valido";"-";"2023";"23"
"2023";"COMPETENZA";"Mandato";"19/01/2023";"26";"Pagamento fattura n.FATTPA 2_23 del 18/01/2023  - Rif. Reversale n. 45";"14 - Spese pubblicazione albo e opuscoli vari";"0 - Spese pubblicazione albo e opuscoli vari";"TIPOGRAFIA TRIESTINA TRIESTE ";"610,00";"110,00";"-";"0,00";"500,00";"BONIFICO BANCARIO";"Valido";"-";"2023";"22"
"2023";"COMPETENZA";"Mandato";"16/01/2023";"25";"CARTA CONTABILE 6";"36 - Commissioni e spese bancarie";"0 - Commissioni e spese bancarie";"MONTE DEI PASCHI DI SIENA  ";"2,00";"-";"0,00";"0,00";"2,00";"COPERTURA SOSPESI";"Valido";"-";"2023";"21"
"2023";"COMPETENZA";"Mandato";"16/01/2023";"24";"CARTA CONTABILE 5";"36 - Commissioni e spese bancarie";"0 - Commissioni e spese bancarie";"MONTE DEI PASCHI DI SIENA  ";"500,00";"-";"0,00";"0,00";"500,00";"COPERTURA SOSPESI";"Valido";"-";"2023";"20"
"2023";"COMPETENZA";"Mandato";"12/01/2023";"23";"IVA SPLIT PAYMENT SU FATT. TELECOM ITALIA S.P.A. - VINCOLATO A REVERSALE 29";"53 - Ritenute per conto terzi";"0 - Ritenute per conto terzi";"AGENZIA DELLE ENTRATE  ";"101,34";"-";"0,00";"0,00";"101,34";"COPERTURA SOSPESI";"Valido";"-";"2023";"19"
"2023";"COMPETENZA";"Mandato";"12/01/2023";"22";"IVA SPLIT PAYMENT SU FATT. FPA23001/23 - INTERGRAFICA PUBBLICITARIA SNC DI RICCARDO NOVACCO & c - VINCOLATO A REVERSALE 21";"53 - Ritenute per conto terzi";"0 - Ritenute per conto terzi";"AGENZIA DELLE ENTRATE  ";"10,56";"-";"0,00";"0,00";"10,56";"COPERTURA SOSPESI";"Valido";"-";"2023";"18"
"2023";"COMPETENZA";"Mandato";"12/01/2023";"21";"IVA SPLIT PAYMENT SU FATT. 2/PA - SISTEMI INTEGRATI ANTINCENDIO E SICUREZZA - VINCOLATO A REVERSALE 20";"53 - Ritenute per conto terzi";"0 - Ritenute per conto terzi";"AGENZIA DELLE ENTRATE  ";"7,48";"-";"0,00";"0,00";"7,48";"COPERTURA SOSPESI";"Valido";"-";"2023";"17"
"2023";"COMPETENZA";"Mandato";"12/01/2023";"20";"IVA SPLIT PAYMENT SU FATT. AO23006877 - VODAFONE ITALIA S.P.A. - VINCOLATO A REVERSALE 19";"53 - Ritenute per conto terzi";"0 - Ritenute per conto terzi";"AGENZIA DELLE ENTRATE  ";"5,28";"-";"0,00";"0,00";"5,28";"COPERTURA SOSPESI";"Valido";"-";"2023";"16"
"2023";"COMPETENZA";"Mandato";"12/01/2023";"19";"IVA SPLIT PAYMENT SU FATT. 0000001/F - TELESORVEGLIANZA SISTEMI E SERVIZI DI SICUREZZA - VINCOLATO A REVERSALE 18";"53 - Ritenute per conto terzi";"0 - Ritenute per conto terzi";"AGENZIA DELLE ENTRATE  ";"32,10";"-";"0,00";"0,00";"32,10";"COPERTURA SOSPESI";"Valido";"-";"2023";"15"
"2023";"COMPETENZA";"Mandato";"12/01/2023";"18";"Pagamento fattura n.8D00230674 del 12/12/2022";"27 - Spese telefoniche, fax e collegamento Internet";"0 - Spese telefoniche, fax e collegamento Internet";"TELECOM ITALIA S.P.A.  ";"172,73";"0,00";"-";"0,00";"172,73";"COPERTURA SOSPESI";"Valido";"-";"2023";"14"
"2023";"COMPETENZA";"Mandato";"12/01/2023";"17";"Pagamento fattura n.8D00229753 del 12/12/2022";"27 - Spese telefoniche, fax e collegamento Internet";"0 - Spese telefoniche, fax e collegamento Internet";"TELECOM ITALIA S.P.A.  ";"140,00";"0,00";"-";"0,00";"140,00";"COPERTURA SOSPESI";"Valido";"-";"2023";"13"
"2023";"COMPETENZA";"Mandato";"12/01/2023";"16";"Pagamento fattura n.8D00229606 del 12/12/2022";"27 - Spese telefoniche, fax e collegamento Internet";"0 - Spese telefoniche, fax e collegamento Internet";"TELECOM ITALIA S.P.A.  ";"147,90";"0,00";"-";"0,00";"147,90";"COPERTURA SOSPESI";"Valido";"-";"2023";"12"
"2023";"COMPETENZA";"Mandato";"12/01/2023";"15";"Pagamento fatture   - Rif. Reversale n. 29";"27 - Spese telefoniche, fax e collegamento Internet";"0 - Spese telefoniche, fax e collegamento Internet";"TELECOM ITALIA S.P.A.  ";"101,34";"101,34";"-";"-";"0,00";"REVERSALE VINCOLATA A MANDATI";"Valido";"-";"2023";"11"
"2023";"COMPETENZA";"Mandato";"12/01/2023";"14";"Pagamento fattura n.FPA 23001/23 del 03/01/2023  - Rif. Reversale n. 21";"17 - Cancelleria, stampati e rilegatura";"0 - Cancelleria, stampati e rilegatura";"INTERGRAFICA PUBBLICITARIA SNC DI RICCARDO NOVACCO & C. ";"58,56";"10,56";"-";"0,00";"48,00";"BONIFICO BANCARIO";"Valido";"-";"2023";"10"
"2023";"COMPETENZA";"Mandato";"12/01/2023";"13";"Pagamento fattura n.2PA del 10/01/2023  - Rif. Reversale n. 20";"24 - Menutenzioni e riparazioni ordinarie: macchine, mobili e pulizie sede";"0 - Menutenzioni e riparazioni ordinarie: macchine, mobili e pulizie sede";"SISTEMI INTEGRATI ANTINCENDIO E SICUREZZA  ";"41,48";"7,48";"-";"0,00";"34,00";"BONIFICO BANCARIO";"Valido";"-";"2023";"9"
"2023";"COMPETENZA";"Mandato";"12/01/2023";"12";"Pagamento fattura n.AO23006877 del 29/12/2022  - Rif. Reversale n. 19";"27 - Spese telefoniche, fax e collegamento Internet";"0 - Spese telefoniche, fax e collegamento Internet";"VODAFONE ITALIA S.p.A. ";"29,28";"5,28";"-";"0,00";"24,00";"BONIFICO BANCARIO";"Valido";"-";"2023";"8"
"2023";"COMPETENZA";"Mandato";"12/01/2023";"11";"Pagamento fattura n.0000001/F del 03/01/2023  - Rif. Reversale n. 18";"24 - Menutenzioni e riparazioni ordinarie: macchine, mobili e pulizie sede";"0 - Menutenzioni e riparazioni ordinarie: macchine, mobili e pulizie sede";"TELESORVEGLIANZA SISTEMI E SERVIZI DI SICUREZZA  ";"177,99";"32,10";"-";"0,00";"145,89";"BONIFICO BANCARIO";"Valido";"-";"2023";"7"
"2023";"COMPETENZA";"Mandato";"12/01/2023";"10";"IVA SPLIT PAYMENT SU FATT. 1 - EUREKA SOC. COOPERATIVA - VINCOLATO A REVERSALE 17";"53 - Ritenute per conto terzi";"0 - Ritenute per conto terzi";"AGENZIA DELLE ENTRATE  ";"376,46";"-";"0,00";"0,00";"376,46";"MODELLO F 24";"Valido";"-";"2023";"6"
"2023";"COMPETENZA";"Mandato";"12/01/2023";"9";"IVA SPLIT PAYMENT SU FATT. 0000661408AMC12022 - MANZONI S.P.A. - VINCOLATO A REVERSALE 16";"53 - Ritenute per conto terzi";"0 - Ritenute per conto terzi";"AGENZIA DELLE ENTRATE  ";"101,21";"-";"0,00";"0,00";"101,21";"MODELLO F 24";"Valido";"-";"2023";"5"
"2023";"COMPETENZA";"Mandato";"12/01/2023";"8";"IVA SPLIT PAYMENT SU FATT. 412213392781 - HERA COMM. - VINCOLATO A REVERSALE 15";"53 - Ritenute per conto terzi";"0 - Ritenute per conto terzi";"AGENZIA DELLE ENTRATE  ";"9,44";"-";"0,00";"0,00";"9,44";"MODELLO F 24";"Valido";"-";"2023";"4"
"2023";"COMPETENZA";"Mandato";"12/01/2023";"7";"IVA SPLIT PAYMENT SU FATT. 832203094899 - HERA COMM. - VINCOLATO A REVERSALE 5";"53 - Ritenute per conto terzi";"0 - Ritenute per conto terzi";"AGENZIA DELLE ENTRATE  ";"120,88";"-";"0,00";"0,00";"120,88";"MODELLO F 24";"Valido";"-";"2023";"3"
"2023";"RESIDUO";"Mandato";"12/01/2023";"6";"IVA SPLIT PAYMENT SU FATT. HERA COMM N.";"53 - Ritenute per conto terzi";"0 - Ritenute per conto terzi";"AGENZIA DELLE ENTRATE  ";"5,47";"-";"0,00";"0,00";"5,47";"MODELLO F 24";"Valido";"-";"2022";"600"
"2023";"RESIDUO";"Mandato";"12/01/2023";"5";"Pagamento fattura n.1 del 03/01/2023  - Rif. Reversale n. 17";"15 - Spese pubblicazione e spedizione Bollettino, addetto stampa";"0 - Spese pubblicazione e spedizione Bollettino, addetto stampa";"EUREKA SOC. COOPERATIVA  ";"2.091,99";"376,46";"-";"0,00";"1.715,53";"BONIFICO BANCARIO";"Valido";"-";"2022";"597"
"2023";"RESIDUO";"Mandato";"12/01/2023";"4";"Pagamento fattura n.0000661408AMC12022 del 31/12/2022  - Rif. Reversale n. 16";"20 - Spese di rappresentanza";"0 - Spese di rappresentanza";"MANZONI S.P.A.  ";"561,27";"101,21";"-";"0,00";"460,06";"BONIFICO BANCARIO";"Valido";"-";"2022";"598"
"2023";"RESIDUO";"Mandato";"12/01/2023";"3";"Pagamento fattura n.412213392781 del 15/12/2022  - Rif. Reversale n. 15";"31 - Energia elettrica, acqua e gas";"0 - Energia elettrica, acqua e gas";"HERA COMM. SRL  ";"198,24";"9,44";"-";"0,00";"188,80";"BONIFICO BANCARIO";"Valido";"-";"2022";"599"
"2023";"COMPETENZA";"Mandato";"09/01/2023";"2";"Pagamento fattura n.832203094899 del 23/11/2022";"31 - Energia elettrica, acqua e gas";"0 - Energia elettrica, acqua e gas";"HERA COMM. SRL  ";"549,44";"0,00";"-";"0,00";"549,44";"COPERTURA SOSPESI";"Valido";"-";"2023";"2"
"2023";"COMPETENZA";"Mandato";"09/01/2023";"1";"Pagamento fatture   - Rif. Reversale n. 5";"31 - Energia elettrica, acqua e gas";"0 - Energia elettrica, acqua e gas";"HERA COMM. SRL  ";"120,88";"120,88";"-";"-";"0,00";"REVERSALE VINCOLATA A MANDATI";"Valido";"-";"2023";"1"
